fUST/lending_fUST_20240121
["ID","MTS","AMOUNT","RATE_DAILY","PERIOD"]
[312376027,1705845042150,-500.0,0.00027397,2]
[312376028,1705845042159,-500.0,0.00027397,2]
[312376029,1705845042168,-500.0,0.00027397,2]
[312376030,1705845042177,-163.9763583,0.00027397,2]
[312376031,1705845042187,-166.04810251,0.00027397,2]
[312376032,1705845042197,-500.0,0.00027397,2]
[312376033,1705845042206,-500.0,0.00027397,2]
[312376034,1705845042216,-500.0,0.00027397,2]
[312376035,1705845042225,-500.0,0.00027397,2]
[312376036,1705845042234,-396.65358356,0.00027397,2]
[312376037,1705845042245,-533.97445114,0.00027397,2]
[312376038,1705845042255,-500.0,0.00027397,2]
[312376039,1705845042264,-500.0,0.00027397,2]
[312376040,1705845042274,-656.66,0.00027397,2]
[312376041,1705845042284,-958.38,0.00027397,2]
[312376042,1705845042293,-500.0,0.00027397,2]
[312376043,1705845042303,-500.0,0.00027397,2]
[312376044,1705845042315,-540.95,0.00027397,2]
[312376045,1705845042325,-500.0,0.00027397,2]
[312376046,1705845042335,-502.52181998,0.00027397,2]
[312376047,1705845042344,-500.0,0.00027397,2]
[312376048,1705845042354,-1300.84,0.00027397,2]
[312376049,1705845042364,-562.37,0.00027397,2]
[312376050,1705845042374,-500.0,0.00027397,2]
[312376051,1705845042384,-1132.91,0.00027397,2]
[312376052,1705845042394,-1000.0,0.00027397,2]
[312376053,1705845042404,-2490.9,0.00027397,2]
[312376054,1705845042414,-335.79645869,0.00027397,2]
[312376055,1705845042425,-295.9326631,0.00027397,2]
[312376056,1705845042435,-500.0,0.00027397,2]
[312376057,1705845042445,-500.0,0.00027397,2]
[312376058,1705845042454,-500.0,0.00027397,2]
[312376059,1705845042464,-14451.48,0.00027397,2]
[312376060,1705845042476,-500.0,0.00027397,2]
[312376061,1705845042486,-646.98,0.00027397,2]
[312376062,1705845042495,-500.0,0.00027397,2]
[312376063,1705845042504,-8985.4,0.00027397,2]
[312376064,1705845042514,-500.0,0.00027397,2]
[312376065,1705845042524,-549.40930506,0.00027397,2]
[312376066,1705845042534,-234.44431672,0.00027397,2]
[312376067,1705845042543,-500.0,0.00027397,2]
[312376068,1705845042554,-3009.28,0.00027397,2]
[312376069,1705845042564,-8616.53,0.00027397,2]
[312376070,1705845042573,-500.0,0.00027397,2]
[312376071,1705845042582,-1212.07,0.00027397,2]
[312376072,1705845042591,-1991.31,0.00027397,2]
[312376074,1705845042601,-500.0,0.00027397,2]
[312376076,1705845042610,-527.61,0.00027397,2]
[312376077,1705845042620,-500.0,0.00027397,2]
[312376078,1705845042629,-606.58,0.00027397,2]
[312376079,1705845042639,-500.0,0.00027397,2]
[312376080,1705845042648,-1188.66,0.00027397,2]
[312376081,1705845042657,-1385.6,0.00027397,2]
[312376082,1705845042667,-2116.25,0.00027397,2]
[312376084,1705845042676,-500.0,0.00027397,2]
[312376086,1705845042685,-500.0,0.00027397,2]
[312376088,1705845042695,-409.5588968,0.00027397,2]
[312376089,1705845042704,-562.18289827,0.00027397,2]
[312376090,1705845042714,-4039.22,0.00027397,2]
[312376091,1705845042723,-500.0,0.00027397,2]
[312376092,1705845042732,-500.0,0.00027397,2]
[312376093,1705845042742,-500.0,0.00027397,2]
[312376094,1705845042751,-500.0,0.00027397,2]
[312376095,1705845042760,-500.0,0.00027397,2]
[312376097,1705845042770,-387.91365375,0.00027397,2]
[312376099,1705845042779,-500.0,0.00027397,2]
[312376101,1705845042788,-500.0,0.00027397,2]
[312376103,1705845042798,-500.0,0.00027397,2]
[312376105,1705845042808,-500.0,0.00027397,2]
[312376107,1705845042818,-500.0,0.00027397,2]
[312376108,1705845042827,-500.0,0.00027397,2]
[312376109,1705845042837,-237.04279308,0.00027397,2]
[312376110,1705845042847,-500.0,0.00027397,2]
[312376111,1705845042857,-992.85,0.00027397,2]
[312376112,1705845042866,-1249.83,0.00027397,2]
[312376118,1705845042904,-500.0,0.00027397,2]
[312376120,1705845042913,-500.0,0.00027397,2]
[312376121,1705845042923,-500.0,0.00027397,2]
[312376122,1705845042931,-1508.03,0.00027397,2]
[312376124,1705845042941,-500.0,0.00027397,2]
[312376125,1705845042950,-494.7940667,0.00027397,2]
[312376126,1705845042964,-637.23312708,0.00027397,2]
[312376127,1705845042974,-272.94732908,0.00027397,2]
[312376128,1705845042983,-500.0,0.00027397,2]
[312376129,1705845042993,-500.0,0.00027397,2]
[312376130,1705845043002,-1368.09,0.00027397,2]
[312376131,1705845043011,-524.75,0.00027397,2]
[312376132,1705845043020,-500.0,0.00027397,2]
[312376133,1705845043030,-500.0,0.00027397,2]
[312376134,1705845043039,-5986.27,0.00027397,2]
[312376135,1705845043049,-500.0,0.00027397,2]
[312376136,1705845043059,-500.0,0.00027397,2]
[312376137,1705845043068,-598.57591787,0.00027397,2]
[312376138,1705845043078,-500.0,0.00027397,2]
[312376140,1705845043087,-500.0,0.00027397,2]
[312376141,1705845043096,-689.74,0.00027397,2]
[312376143,1705845043105,-1074.45,0.00027397,2]
[312376145,1705845043114,-500.0,0.00027397,2]
[312376146,1705845043124,-515.38949,0.00027397,2]
[312376148,1705845043133,-515.38949,0.00027397,2]
[312376149,1705845043143,-28980.02,0.00027397,3]
[312376150,1705845043152,-24150.02,0.00027397,3]
[312376151,1705845043162,-20125.01,0.00027397,3]
[312376153,1705845043171,-151.0,0.00027671,2]
[312376155,1705845043180,-151.0,0.00027671,2]
[312376156,1705845043189,-151.0,0.00027671,2]
[312376158,1705845043198,-151.0,0.00027671,2]
[312376159,1705845043207,-406.14912,0.00027671,2]
[312376160,1705845043217,-406.14912,0.00027671,2]
[312376161,1705845043226,-406.14912,0.00027671,2]
[312376162,1705845043235,-406.14912,0.00027671,2]
[312376163,1705845043245,-151.0,0.00027671,2]
[312376164,1705845043253,-151.0,0.00027671,2]
[312376165,1705845043262,-151.0,0.00027671,2]
[312376166,1705845043271,-151.0,0.00027671,2]
[312376167,1705845043280,-1000.0,0.00027671,2]
[312376168,1705845043289,-1000.0,0.00027671,2]
[312376169,1705845043298,-1000.0,0.00027671,2]
[312376170,1705845043308,-1000.0,0.00027671,2]
[312376171,1705845043317,-515.38949,0.00027671,2]
[312376172,1705845043326,-515.38949,0.00027671,2]
[312376173,1705845043335,-515.38949,0.00027671,2]
[312376174,1705845043344,-515.38949,0.00027671,2]
[312376175,1705845043353,-500.0,0.00027671,2]
[312376176,1705845043362,-500.0,0.00027671,2]
[312376177,1705845043371,-503.48571087,0.00027671,2]
[312376178,1705845043380,-500.0,0.00027671,2]
[312376179,1705845043389,-178.74155867,0.00027671,2]
[312376180,1705845043398,-500.0,0.00027671,2]
[312376181,1705845043407,-651.7,0.00027671,2]
[312376182,1705845043416,-500.0,0.00027671,2]
[312376183,1705845043425,-500.0,0.00027671,2]
[312376184,1705845043435,-500.0,0.00027671,2]
[312376185,1705845043444,-607.21258544,0.00027671,2]
[312376186,1705845043453,-500.0,0.00027671,2]
[312376187,1705845043462,-204.20940266,0.00027671,2]
[312376188,1705845043472,-500.0,0.00027671,2]
[312376189,1705845043482,-500.0,0.00027671,2]
[312376190,1705845043490,-500.0,0.00027671,2]
[312376191,1705845043500,-500.0,0.00027671,2]
[312376192,1705845043511,-509.29,0.00027671,2]
[312376193,1705845043522,-500.0,0.00027671,2]
[312376194,1705845043533,-555.98,0.00027671,2]
[312376195,1705845043543,-578.89876639,0.00027671,2]
[312376196,1705845043555,-500.0,0.00027671,2]
[312376197,1705845043566,-461.06310589,0.00027671,2]
[312376198,1705845043576,-500.0,0.00027671,2]
[312376199,1705845043586,-1882.55,0.00027671,2]
[312376200,1705845043596,-500.0,0.00027671,2]
[312376201,1705845043607,-2550.67,0.00027671,2]
[312376202,1705845043616,-1014.72,0.00027671,2]
[312376203,1705845043627,-515.33,0.00027671,2]
[312376204,1705845043637,-500.0,0.00027671,2]
[312376205,1705845043647,-500.0,0.00027671,2]
[312376206,1705845043656,-500.0,0.00027671,2]
[312376207,1705845043666,-500.0,0.00027671,2]
[312376208,1705845043675,-500.0,0.00027671,2]
[312376209,1705845043684,-500.0,0.00027671,2]
[312376210,1705845043695,-500.0,0.00027671,2]
[312376211,1705845043706,-502.39253429,0.00027671,2]
[312376212,1705845043716,-500.0,0.00027671,2]
[312376213,1705845043725,-500.0,0.00027671,2]
[312376214,1705845043734,-500.0,0.00027671,2]
[312376215,1705845043743,-621.95,0.00027671,2]
[312376216,1705845043752,-500.0,0.00027671,2]
[312376217,1705845043762,-500.0,0.00027671,2]
[312376218,1705845043771,-161.90922451,0.00027671,2]
[312376219,1705845043781,-459.32992208,0.00027671,2]
[312376220,1705845043790,-500.0,0.00027671,2]
[312376221,1705845043799,-500.0,0.00027671,2]
[312376222,1705845043809,-874.39,0.00027671,2]
[312376223,1705845043819,-500.0,0.00027671,2]
[312376224,1705845043828,-500.0,0.00027671,2]
[312376225,1705845043837,-500.0,0.00027671,2]
[312376226,1705845043846,-500.0,0.00027671,2]
[312376227,1705845043856,-500.0,0.00027671,2]
[312376228,1705845043866,-500.0,0.00027671,2]
[312376229,1705845043875,-1000.0,0.00027671,2]
[312376230,1705845043884,-558.44,0.00027671,2]
[312376231,1705845043894,-500.0,0.00027671,2]
[312376232,1705845043903,-1030.37,0.00027671,2]
[312376233,1705845043912,-2306.94,0.00027671,2]
[312376234,1705845043923,-798.39,0.00027671,2]
[312376235,1705845043932,-500.0,0.00027671,2]
[312376236,1705845043941,-500.0,0.00027671,2]
[312376237,1705845043951,-500.0,0.00027671,2]
[312376238,1705845043960,-500.0,0.00027671,2]
[312376239,1705845043970,-500.0,0.00027671,2]
[312376240,1705845043980,-150.10003198,0.00027671,2]
[312376241,1705845043989,-500.0,0.00027671,2]
[312376242,1705845043999,-556.67,0.00027671,2]
[312376243,1705845044008,-957.57,0.00027671,2]
[312376244,1705845044017,-569.96,0.00027671,2]
[312376245,1705845044027,-555.99,0.00027671,2]
[312376246,1705845044036,-500.0,0.00027671,2]
[312376247,1705845044045,-500.0,0.00027671,2]
[312376248,1705845044055,-1832.27,0.00027671,2]
[312376249,1705845044064,-527.23,0.00027671,2]
[312376250,1705845044074,-500.0,0.00027671,2]
[312376251,1705845044083,-425.81095081,0.00027671,2]
[312376252,1705845044092,-500.0,0.00027671,2]
[312376253,1705845044102,-500.0,0.00027671,2]
[312376254,1705845044111,-500.0,0.00027671,2]
[312376255,1705845044121,-437.94230908,0.00027671,2]
[312376256,1705845044130,-500.0,0.00027671,2]
[312376257,1705845044140,-756.22,0.00027671,2]
[312376258,1705845044149,-500.0,0.00027671,2]
[312376259,1705845044160,-500.0,0.00027671,2]
[312376260,1705845044169,-1665.91,0.00027671,2]
[312376261,1705845044179,-500.0,0.00027671,2]
[312376262,1705845044189,-1117.92,0.00027671,2]
[312376263,1705845044199,-500.0,0.00027671,2]
[312376264,1705845044209,-500.0,0.00027671,2]
[312376265,1705845044220,-779.21,0.00027671,2]
[312376266,1705845044230,-1000.0,0.00027671,2]
[312376267,1705845044239,-561.16798404,0.00027671,2]
[312376268,1705845044249,-500.0,0.00027671,2]
[312376269,1705845044258,-500.0,0.00027671,2]
[312376270,1705845044267,-500.0,0.00027671,2]
[312376271,1705845044276,-805.13,0.00027671,2]
[312376272,1705845044286,-500.0,0.00027671,2]
[312376273,1705845044295,-500.0,0.00027671,2]
[312376274,1705845044305,-500.0,0.00027671,2]
[312376275,1705845044315,-500.0,0.00027671,2]
[312376276,1705845044328,-500.0,0.00027671,2]
[312376277,1705845044338,-500.0,0.00027671,2]
[312376278,1705845044347,-672.94,0.00027671,2]
[312376279,1705845044357,-502.39572461,0.00027671,2]
[312376280,1705845044366,-500.0,0.00027671,2]
[312376281,1705845044379,-875.2,0.00027671,2]
[312376282,1705845044388,-368.94436176,0.00027671,2]
[312376283,1705845044399,-500.0,0.00027671,2]
[312376284,1705845044410,-500.0,0.00027671,2]
[312376285,1705845044420,-676.85,0.00027671,2]
[312376286,1705845044431,-1899.5,0.00027671,2]
[312376287,1705845044442,-526.3,0.00027671,2]
[312376288,1705845044452,-500.0,0.00027671,2]
[312376289,1705845044463,-500.0,0.00027671,2]
[312376290,1705845044473,-500.0,0.00027671,2]
[312376291,1705845044486,-24464.93,0.00027671,2]
[312376292,1705845044495,-500.0,0.00027671,2]
[312376293,1705845044505,-5949.17,0.00027671,2]
[312376294,1705845044515,-500.0,0.00027671,2]
[312376295,1705845044525,-776.61,0.00027671,2]
[312376296,1705845044535,-470.11053392,0.00027671,2]
[312376297,1705845044544,-500.0,0.00027671,2]
[312376298,1705845044557,-503.3727828,0.00027671,2]
[312376299,1705845044568,-500.0,0.00027671,2]
[312376300,1705845044578,-500.0,0.00027671,2]
[312376301,1705845044589,-500.0,0.00027671,2]
[312376302,1705845044599,-500.0,0.00027671,2]
[312376303,1705845044608,-500.0,0.00027671,2]
[312376304,1705845044617,-458.1347498,0.00027671,2]
[312376305,1705845044627,-500.0,0.00027671,2]
[312376306,1705845044637,-308.79262305,0.00027671,2]
[312376307,1705845044646,-656.66,0.00027671,2]
[312376308,1705845044655,-958.38,0.00027671,2]
[312376309,1705845044665,-500.0,0.00027671,2]
[312376310,1705845044674,-540.95,0.00027671,2]
[312376311,1705845044683,-500.0,0.00027671,2]
[312376312,1705845044692,-500.0,0.00027671,2]
[312376313,1705845044702,-500.0,0.00027671,2]
[312376314,1705845044711,-1300.84,0.00027671,2]
[312376315,1705845044720,-562.37,0.00027671,2]
[312376316,1705845044730,-1132.91,0.00027671,2]
[312376317,1705845044739,-1035.93563138,0.00027671,2]
[312376318,1705845044749,-2490.9,0.00027671,2]
[312376319,1705845044759,-500.0,0.00027671,2]
[312376320,1705845044768,-500.0,0.00027671,2]
[312376321,1705845044778,-14451.48,0.00027671,2]
[312376322,1705845044787,-500.0,0.00027671,2]
[312376323,1705845044797,-500.0,0.00027671,2]
[312376324,1705845044808,-646.98,0.00027671,2]
[312376325,1705845044817,-500.0,0.00027671,2]
[312376326,1705845044827,-7343.37674809,0.00027671,2]
[312376327,1705845044951,-1642.02325191,0.00027671,2]
[312376328,1705845044960,-500.0,0.00027671,2]
[312376329,1705845044970,-500.0,0.00027671,2]
[312376330,1705845044980,-2476.02416269,0.00027671,2]
[312376331,1705845044992,-533.25583731,0.00027671,2]
[312376332,1705845045002,-8616.53,0.00027671,2]
[312376333,1705845045012,-500.0,0.00027671,2]
[312376334,1705845045021,-1212.07,0.00027671,2]
[312376335,1705845045032,-1991.31,0.00027671,2]
[312376336,1705845045043,-500.0,0.00027671,2]
[312376337,1705845045053,-527.61,0.00027671,2]
[312376338,1705845045062,-500.0,0.00027671,2]
[312376339,1705845045071,-606.58,0.00027671,2]
[312376340,1705845045081,-500.0,0.00027671,2]
[312376341,1705845045090,-1188.66,0.00027671,2]
[312376342,1705845045100,-1385.6,0.00027671,2]
[312376343,1705845045109,-2116.25,0.00027671,2]
[312376344,1705845045119,-500.0,0.00027671,2]
[312376345,1705845045128,-500.0,0.00027671,2]
[312376346,1705845045137,-4039.22,0.00027671,2]
[312376347,1705845045146,-500.0,0.00027671,2]
[312376348,1705845045156,-500.0,0.00027671,2]
[312376349,1705845045165,-500.0,0.00027671,2]
[312376350,1705845045175,-503.30082423,0.00027671,2]
[312376351,1705845045184,-500.0,0.00027671,2]
[312376352,1705845045194,-500.0,0.00027671,2]
[312376353,1705845045204,-500.0,0.00027671,2]
[312376354,1705845045213,-500.0,0.00027671,2]
[312376355,1705845045224,-500.0,0.00027671,2]
[312376356,1705845045234,-500.0,0.00027671,2]
[312376357,1705845045243,-500.0,0.00027671,2]
[312376358,1705845045254,-992.85,0.00027671,2]
[312376359,1705845045263,-1249.83,0.00027671,2]
[312376360,1705845045272,-500.0,0.00027671,2]
[312376361,1705845045282,-500.0,0.00027671,2]
[312376362,1705845045291,-500.0,0.00027671,2]
[312376363,1705845045301,-1508.03,0.00027671,2]
[312376364,1705845045310,-500.0,0.00027671,2]
[312376365,1705845045320,-500.0,0.00027671,2]
[312376366,1705845045329,-1368.09,0.00027671,2]
[312376367,1705845045339,-524.75,0.00027671,2]
[312376368,1705845045348,-250.97839217,0.00027671,2]
[312376369,1705845045358,-500.0,0.00027671,2]
[312376370,1705845045368,-500.0,0.00027671,2]
[312376371,1705845045377,-500.0,0.00027671,2]
[312376372,1705845045387,-5986.27,0.00027671,2]
[312376373,1705845045397,-500.0,0.00027671,2]
[312376374,1705845045407,-500.0,0.00027671,2]
[312376375,1705845045416,-689.74,0.00027671,2]
[312376376,1705845045427,-1074.45,0.00027671,2]
[312376377,1705845045440,-500.0,0.00027671,2]
[312376378,1705845045449,-631.21161143,0.0002772,2]
[312376379,1705845045460,-669.06350926,0.00027924,5]
[312376380,1705845045471,-4372.28156346,0.00027924,3]
[312376381,1705845045485,-50000.0,0.00027924,5]
[312376382,1705845045496,-5000.0,0.00027924,5]
[312376383,1705845045506,-6577.42616551,0.00027924,3]
[312376384,1705845045517,-10188.85261501,0.00027924,3]
[312376385,1705845045526,-5000.0,0.00027924,5]
[312376386,1705845045535,-3083.73082131,0.00027924,3]
[312376387,1705845045544,-5000.0,0.00027924,5]
[312376388,1705845045556,-5000.0,0.00027924,5]
[312376389,1705845045565,-50000.0,0.00027924,5]
[312376391,1705845045575,-50000.0,0.00027924,5]
[312376393,1705845045584,-19375.41476416,0.00027924,5]
[312376398,1705845045697,-290.785384,0.00027924,2]
[312376399,1705845045707,-151.0,0.00027924,2]
[312376400,1705845045716,-151.0,0.00027924,2]
[312376401,1705845045725,-151.0,0.00027924,2]
[312376402,1705845045735,-151.0,0.00027924,2]
[312376403,1705845045744,-406.14912,0.00027924,2]
[312376404,1705845045754,-406.14912,0.00027924,2]
[312376405,1705845045763,-406.14912,0.00027924,2]
[312376407,1705845045772,-406.14912,0.00027924,2]
[312376408,1705845045781,-151.0,0.00027924,2]
[312376409,1705845045790,-151.0,0.00027924,2]
[312376410,1705845045798,-152.509172,0.00027924,2]
[312376411,1705845045808,-1000.0,0.00027924,2]
[312376412,1705845045817,-1000.0,0.00027924,2]
[312376413,1705845045826,-1000.0,0.00027924,2]
[312376414,1705845045835,-1000.0,0.00027924,2]
[312376415,1705845045844,-515.38949,0.00027924,2]
[312376416,1705845045853,-515.38949,0.00027924,2]
[312376417,1705845045862,-515.38949,0.00027924,2]
[312376418,1705845045871,-515.38949,0.00027924,2]
[312376419,1705845045880,-151.0,0.00027945,2]
[312376420,1705845045889,-151.0,0.00027945,2]
[312376421,1705845045900,-151.0,0.00027945,2]
[312376422,1705845045909,-151.0,0.00027945,2]
[312376423,1705845045918,-406.14912,0.00027945,2]
[312376424,1705845045927,-406.14912,0.00027945,2]
[312376425,1705845045936,-406.14912,0.00027945,2]
[312376426,1705845045945,-406.14912,0.00027945,2]
[312376427,1705845045954,-151.0,0.00027945,2]
[312376428,1705845045964,-151.0,0.00027945,2]
[312376429,1705845045973,-1000.0,0.00027945,2]
[312376430,1705845045982,-1000.0,0.00027945,2]
[312376431,1705845045991,-1000.0,0.00027945,2]
[312376432,1705845046000,-1000.0,0.00027945,2]
[312376433,1705845046010,-515.38949,0.00027945,2]
[312376434,1705845046019,-515.389497,0.00027945,2]
[312376435,1705845046029,-500.0,0.00027945,2]
[312376436,1705845046038,-500.0,0.00027945,2]
[312376437,1705845046047,-500.0,0.00027945,2]
[312376438,1705845046057,-500.0,0.00027945,2]
[312376439,1705845046066,-651.7,0.00027945,2]
[312376440,1705845046075,-500.0,0.00027945,2]
[312376441,1705845046085,-500.0,0.00027945,2]
[312376442,1705845046094,-500.0,0.00027945,2]
[312376443,1705845046104,-150.91379181,0.00027945,2]
[312376444,1705845046113,-500.0,0.00027945,2]
[312376445,1705845046122,-500.0,0.00027945,2]
[312376446,1705845046131,-500.0,0.00027945,2]
[312376447,1705845046140,-509.29,0.00027945,2]
[312376448,1705845046149,-500.0,0.00027945,2]
[312376449,1705845046159,-555.98,0.00027945,2]
[312376450,1705845046168,-500.0,0.00027945,2]
[312376451,1705845046179,-500.0,0.00027945,2]
[312376452,1705845046188,-1882.55,0.00027945,2]
[312376453,1705845046198,-500.0,0.00027945,2]
[312376454,1705845046207,-2550.67,0.00027945,2]
[312376455,1705845046217,-1014.72,0.00027945,2]
[312376456,1705845046226,-515.33,0.00027945,2]
[312376458,1705845046236,-500.0,0.00027945,2]
[312376460,1705845046244,-500.0,0.00027945,2]
[312376461,1705845046253,-500.0,0.00027945,2]
[312376463,1705845046263,-500.0,0.00027945,2]
[312376465,1705845046272,-500.0,0.00027945,2]
[312376466,1705845046281,-500.0,0.00027945,2]
[312376467,1705845046290,-500.0,0.00027945,2]
[312376468,1705845046299,-500.0,0.00027945,2]
[312376469,1705845046309,-500.0,0.00027945,2]
[312376470,1705845046318,-500.0,0.00027945,2]
[312376471,1705845046327,-621.95,0.00027945,2]
[312376472,1705845046336,-500.0,0.00027945,2]
[312376473,1705845046345,-500.0,0.00027945,2]
[312376474,1705845046353,-500.0,0.00027945,2]
[312376475,1705845046362,-500.0,0.00027945,2]
[312376476,1705845046372,-874.39,0.00027945,2]
[312376477,1705845046381,-500.0,0.00027945,2]
[312376478,1705845046390,-500.0,0.00027945,2]
[312376479,1705845046399,-500.0,0.00027945,2]
[312376480,1705845046408,-500.0,0.00027945,2]
[312376481,1705845046417,-500.0,0.00027945,2]
[312376482,1705845046426,-500.0,0.00027945,2]
[312376483,1705845046435,-1000.0,0.00027945,2]
[312376484,1705845046444,-558.44,0.00027945,2]
[312376485,1705845046453,-500.0,0.00027945,2]
[312376486,1705845046462,-1030.37,0.00027945,2]
[312376487,1705845046472,-2306.94,0.00027945,2]
[312376488,1705845046485,-798.39,0.00027945,2]
[312376489,1705845046494,-500.0,0.00027945,2]
[312376490,1705845046503,-500.0,0.00027945,2]
[312376491,1705845046514,-500.0,0.00027945,2]
[312376492,1705845046523,-291.13137368,0.00027945,2]
[312376493,1705845046532,-500.0,0.00027945,2]
[312376494,1705845046541,-500.0,0.00027945,2]
[312376495,1705845046551,-556.67,0.00027945,2]
[312376496,1705845046561,-957.57,0.00027945,2]
[312376497,1705845046571,-569.96,0.00027945,2]
[312376498,1705845046580,-555.99,0.00027945,2]
[312376499,1705845046590,-500.0,0.00027945,2]
[312376501,1705845046599,-500.0,0.00027945,2]
[312376502,1705845046608,-1832.27,0.00027945,2]
[312376503,1705845046617,-527.23,0.00027945,2]
[312376504,1705845046627,-500.0,0.00027945,2]
[312376505,1705845046636,-500.0,0.00027945,2]
[312376506,1705845046646,-500.0,0.00027945,2]
[312376507,1705845046655,-500.0,0.00027945,2]
[312376508,1705845046665,-500.0,0.00027945,2]
[312376509,1705845046675,-756.22,0.00027945,2]
[312376510,1705845046684,-500.0,0.00027945,2]
[312376511,1705845046694,-346.71546179,0.00027945,2]
[312376512,1705845046704,-1665.91,0.00027945,2]
[312376513,1705845046713,-500.0,0.00027945,2]
[312376514,1705845046723,-1117.92,0.00027945,2]
[312376515,1705845046732,-500.0,0.00027945,2]
[312376516,1705845046742,-511.9404377,0.00027945,2]
[312376517,1705845046751,-779.21,0.00027945,2]
[312376518,1705845046761,-1000.0,0.00027945,2]
[312376519,1705845046770,-500.0,0.00027945,2]
[312376520,1705845046779,-500.0,0.00027945,2]
[312376521,1705845046789,-500.0,0.00027945,2]
[312376522,1705845046798,-805.13,0.00027945,2]
[312376523,1705845046808,-500.0,0.00027945,2]
[312376524,1705845046818,-500.0,0.00027945,2]
[312376525,1705845046828,-645.0704985,0.00027945,2]
[312376526,1705845046837,-635.09409902,0.00027945,2]
[312376527,1705845046846,-500.0,0.00027945,2]
[312376528,1705845046856,-500.0,0.00027945,2]
[312376529,1705845046865,-672.94,0.00027945,2]
[312376530,1705845046874,-500.0,0.00027945,2]
[312376531,1705845046883,-875.2,0.00027945,2]
[312376532,1705845046894,-500.0,0.00027945,2]
[312376533,1705845046904,-500.0,0.00027945,2]
[312376534,1705845046914,-676.85,0.00027945,2]
[312376535,1705845046924,-526.3,0.00027945,2]
[312376536,1705845046933,-1899.5,0.00027945,2]
[312376537,1705845046944,-500.0,0.00027945,2]
[312376538,1705845046953,-500.0,0.00027945,2]
[312376539,1705845046963,-500.0723576,0.00027945,2]
[312376540,1705845046972,-24464.93,0.00027945,2]
[312376541,1705845046982,-500.0,0.00027945,2]
[312376542,1705845046991,-5949.17,0.00027945,2]
[312376543,1705845047000,-163.8931268,0.00027945,2]
[312376544,1705845047010,-776.61,0.00027945,2]
[312376545,1705845047019,-500.0,0.00027945,2]
[312376546,1705845047028,-500.0,0.00027945,2]
[312376547,1705845047037,-500.0,0.00027945,2]
[312376548,1705845047046,-528.38216131,0.00027945,2]
[312376549,1705845047057,-500.0,0.00027945,2]
[312376550,1705845047065,-500.0,0.00027945,2]
[312376551,1705845047074,-500.0,0.00027945,2]
[312376552,1705845047085,-656.66,0.00027945,2]
[312376553,1705845047095,-958.38,0.00027945,2]
[312376554,1705845047105,-500.0,0.00027945,2]
[312376555,1705845047113,-540.95,0.00027945,2]
[312376556,1705845047123,-171.16187186,0.00027945,2]
[312376557,1705845047131,-500.0,0.00027945,2]
[312376558,1705845047141,-500.0,0.00027945,2]
[312376559,1705845047150,-1300.84,0.00027945,2]
[312376560,1705845047159,-562.37,0.00027945,2]
[312376561,1705845047167,-1132.91,0.00027945,2]
[312376562,1705845047177,-2490.9,0.00027945,2]
[312376563,1705845047186,-500.0,0.00027945,2]